bitfinex/quotes_SOLUSD_20250525
["timestamp","ask_amount","ask_price","bid_price","bid_amount"]
[1748137928297,13.38535124,171.64,171.58,6.1844]
[1748137928499,13.38535124,171.61,171.56,1.6391]
[1748137928726,13.38535124,171.61,171.36,61.37885597]
[1748137928727,13.38535124,171.57,171.52,14.90485124]
[1748137928920,26.0,171.6,171.52,14.90485124]
[1748137928921,13.38535124,171.56,171.53,34.88]
[1748137929226,13.38535124,171.54,171.49,13.38535124]
[1748137929402,13.38535124,171.54,171.5,34.88]
[1748137929733,13.38535124,171.53,171.5,34.88]
[1748137929924,13.38535124,171.54,171.5,34.88]
[1748137930337,13.38535124,171.53,171.51,34.88]
[1748137930526,13.38535124,171.53,171.47,1.5195]
[1748137930832,13.38535124,171.53,171.48,48.26535124]
[1748137933035,13.38535124,171.52,171.48,48.26535124]
[1748137933414,13.38535124,171.54,171.49,13.38535124]
[1748137935647,13.38535124,171.53,171.48,48.26535124]
[1748137937445,13.38535124,171.51,171.45,6.1844]
[1748137937642,13.38535124,171.51,171.49,255.88]
[1748137937843,13.38535124,171.51,171.49,38.14]
[1748137938951,0.14216157,171.55,171.44,26.0]
[1748137938952,13.38535124,171.5,171.44,13.38535124]
[1748137939122,13.38535124,171.5,171.45,48.28535124]
[1748137939927,13.38535124,171.52,171.47,13.38535124]
[1748137940351,13.38535124,171.51,171.46,13.38535124]
[1748137940657,13.38535124,171.51,171.45,34.9]
[1748137940856,13.38535124,171.49,171.41,6.4824]
[1748137941159,1.5848,171.52,171.42,34.9]
[1748137941160,13.38535124,171.44,171.42,34.9]
[1748137941323,13.38535124,171.43,171.36,0.14216157]
[1748137941528,13.38535124,171.41,171.36,13.38535124]
[1748137941739,13.38535124,171.4,171.37,34.9]
[1748137942025,13.38535124,171.4,171.38,34.9]
[1748137942252,13.38535124,171.39,171.34,13.38535124]
[1748137942455,13.38535124,171.39,171.3,6.2529]
[1748137942456,13.38535124,171.38,171.35,34.9]
[1748137943128,13.38535124,171.38,171.3,6.2529]
[1748137943327,13.38535124,171.34,171.25,8.1876]
[1748137943536,13.38535124,171.33,171.29,13.38535124]
[1748137943744,13.38535124,171.33,171.25,8.1876]
[1748137943957,13.38535124,171.32,171.28,13.38535124]
[1748137944253,26.0,171.32,171.21,1.5344]
[1748137944556,13.38535124,171.31,171.26,13.38535124]
[1748137944932,13.38535124,171.31,171.23,34.9]
[1748137945142,13.38535124,171.31,171.26,13.38535124]
[1748137945343,26.0,171.32,171.26,13.38535124]
[1748137945543,20.18144886,171.37,171.23,34.9]
[1748137945544,13.38535124,171.34,171.29,13.38535124]
[1748137945744,13.38535124,171.34,171.3,34.92]
[1748137945949,27.5318,171.37,171.3,34.92]
[1748137946137,1.5318,171.37,171.31,13.38535124]
[1748137946350,13.38535124,171.36,171.31,13.38535124]
[1748137946561,26.0,171.39,171.3,34.92]
[1748137946856,13.38535124,171.39,171.3,34.92]
[1748137947064,13.38535124,171.38,171.33,13.38535124]
[1748137947254,13.38535124,171.38,171.3,34.92]
[1748137947458,13.38535124,171.37,171.32,13.38535124]
[1748137947862,13.38535124,171.37,171.33,13.38535124]
[1748137948173,13.38535124,171.37,171.31,256.06]
[1748137948478,13.38535124,171.36,171.31,13.38535124]
[1748137948647,13.38535124,171.36,171.32,34.92]
[1748137949167,13.38535124,171.36,171.33,34.92]
[1748137949739,26.0,171.38,171.33,34.92]
[1748137949955,13.38535124,171.37,171.33,48.30535124]
[1748137951138,135.7,171.4,171.34,13.38535124]
[1748137951139,13.38535124,171.39,171.34,13.38535124]
[1748137951343,161.7,171.4,171.34,13.38535124]
[1748137951572,175.08535124,171.4,171.35,13.38535124]
[1748137952365,149.08535124,171.4,171.35,13.38535124]
[1748137952570,135.7,171.4,171.36,13.38535124]
[1748137952874,149.08535124,171.4,171.35,13.38535124]
[1748137953370,13.38535124,171.39,171.33,34.92]
[1748137953562,13.38535124,171.39,171.34,13.38535124]
[1748137954973,149.08535124,171.4,171.35,13.38535124]
[1748137955366,149.08535124,171.4,171.33,34.92]
[1748137955367,13.38535124,171.39,171.33,34.92]
[1748137955559,13.38535124,171.39,171.34,13.38535124]
[1748137956071,149.08535124,171.4,171.35,13.38535124]
[1748137956300,149.08535124,171.4,171.33,34.92]
[1748137956448,13.38535124,171.37,171.25,6.346]
[1748137956655,13.38535124,171.35,171.3,13.38535124]
[1748137956856,13.38535124,171.35,171.31,34.92]
[1748137957056,13.38535124,171.36,171.31,48.30535124]
[1748137957257,13.38535124,171.35,171.25,24.99564886]
[1748137957457,13.38535124,171.34,171.3,13.38535124]
[1748137957651,13.38535124,171.34,171.31,34.92]
[1748137957850,27.5498,171.35,171.32,73.04]
[1748137958088,13.38535124,171.33,171.32,34.92]
[1748137959175,27.5498,171.35,171.32,34.92]
[1748137959377,26.0,171.33,171.32,34.92]
[1748137959556,39.38535124,171.33,171.32,34.92]
[1748137961675,26.0,171.33,171.32,34.92]
[1748137961880,39.38535124,171.33,171.32,34.92]
[1748137963814,39.38535124,171.33,171.32,34.94]
[1748137964402,26.0,171.33,171.32,34.94]
[1748137964596,39.38535124,171.33,171.32,34.94]
[1748137966695,26.14216157,171.34,171.32,34.94]
[1748137966897,13.38535124,171.33,171.32,34.94]
[1748137967604,13.38535124,171.33,171.32,291.1]
[1748137968008,7.6742,171.35,171.32,291.1]
[1748137968205,39.38535124,171.33,171.32,291.1]
[1748137968409,39.38535124,171.33,171.32,73.08]
[1748137970507,39.38535124,171.33,171.32,34.94]
[1748137974993,39.38535124,171.33,171.26,13.38535124]
[1748137975197,13.38535124,171.31,171.27,34.94]
[1748137975523,13.38535124,171.31,171.28,34.94]
[1748137976224,26.0,171.32,171.28,34.94]
[1748137976526,13.38535124,171.32,171.28,34.94]
[1748137977523,13.38535124,171.32,171.29,256.2]
[1748137978430,13.38535124,171.31,171.29,256.2]
[1748137978855,13.38535124,171.31,171.29,38.14]
[1748137979037,13.38535124,171.31,171.3,34.94]
[1748137979839,13.38535124,171.32,171.3,34.94]
[1748137980021,39.38535124,171.34,171.3,34.94]
[1748137980219,135.7,171.37,171.31,13.38535124]
[1748137980436,13.38535124,171.37,171.32,13.38535124]
[1748137980751,13.38535124,171.37,171.27,13.38535124]
[1748137980752,13.38535124,171.4,171.35,13.38535124]
[1748137980937,7.6453,171.43,171.37,13.38535124]
[1748137981230,13.38535124,171.42,171.37,13.38535124]
[1748137981439,13.38535124,171.43,171.38,13.38535124]
[1748137981633,13.38535124,171.43,171.39,34.94]
[1748137981848,39.38535124,171.43,171.39,34.94]
[1748137982233,26.0,171.43,171.39,34.94]
[1748137982432,13.38535124,171.42,171.39,34.94]
[1748137982643,39.38535124,171.43,171.39,34.94]
[1748137982849,13.38535124,171.42,171.39,34.94]
[1748137983159,1.5082,171.46,171.39,48.32535124]
[1748137983617,13.38535124,171.43,171.39,48.32535124]
[1748137984049,13.38535124,171.42,171.39,34.94]
[1748137985925,13.38535124,171.41,171.39,34.94]
[1748137987043,26.0,171.44,171.39,34.94]
[1748137987242,13.38535124,171.41,171.39,34.94]
[1748137987629,13.38535124,171.41,171.4,256.12]
[1748137988457,13.38535124,171.41,171.4,291.06]
[1748137989443,13.38535124,171.41,171.3,30.60729806]
[1748137989647,13.38535124,171.38,171.33,13.38535124]
[1748137989947,13.38535124,171.37,171.32,13.38535124]
[1748137990127,13.38535124,171.36,171.31,34.94]
[1748137990323,26.0,171.38,171.32,34.94]
[1748137990529,13.38535124,171.35,171.32,34.94]
[1748137991541,13.38535124,171.36,171.32,34.94]
[1748137991857,13.38535124,171.36,171.31,13.38535124]
[1748137992158,13.38535124,171.36,171.32,34.94]
[1748137993351,13.38535124,171.36,171.33,34.94]
[1748137994058,26.0,171.38,171.33,34.94]
[1748137994240,13.38535124,171.36,171.33,34.94]
[1748137995557,13.38535124,171.37,171.33,48.32535124]
[1748137995760,39.38535124,171.38,171.33,48.32535124]
[1748137995965,13.38535124,171.37,171.33,34.94]
[1748137996635,13.38535124,171.35,171.33,34.94]
[1748137997161,13.38535124,171.35,171.29,7.6392]
[1748137997351,13.38535124,171.35,171.3,48.32535124]
[1748137997549,13.38535124,171.35,171.31,256.12]
[1748137997769,13.38535124,171.35,171.31,269.50535124]
[1748137997968,13.38535124,171.35,171.31,51.48535124]
[1748137998265,13.38535124,171.35,171.31,13.38535124]
[1748137998569,13.38535124,171.34,171.32,34.94]
[1748137998745,26.0,171.38,171.32,34.94]
[1748137998746,13.38535124,171.33,171.32,34.94]
[1748138000270,135.7,171.37,171.32,34.94]
[1748138000576,13.38535124,171.34,171.32,34.94]
[1748138002779,149.08535124,171.37,171.32,48.32535124]
[1748138002959,135.7,171.37,171.33,13.38535124]
[1748138003580,149.08535124,171.37,171.33,13.38535124]
[1748138004075,13.38535124,171.36,171.32,48.32535124]
[1748138004465,13.38535124,171.36,171.32,34.94]
[1748138005372,13.38535124,171.35,171.32,34.94]
[1748138006081,13.38535124,171.36,171.32,34.94]
[1748138007466,13.38535124,171.36,171.33,256.12]
[1748138009784,26.0,171.4,171.33,13.38535124]
[1748138010084,13.38535124,171.41,171.36,13.38535124]
[1748138010266,13.38535124,171.41,171.32,43.0324]
[1748138010267,13.38535124,171.41,171.37,34.94]
[1748138012264,13.38535124,171.41,171.37,48.32535124]
[1748138012464,26.0,171.42,171.37,48.32535124]
[1748138012465,39.38535124,171.42,171.37,48.32535124]
[1748138012802,149.08535124,171.43,171.38,13.38535124]
[1748138015189,149.08535124,171.43,171.32,34.0924]
[1748138015393,13.38535124,171.41,171.33,34.94]
[1748138015599,13.38535124,171.41,171.36,13.38535124]
[1748138015769,13.38535124,171.41,171.37,34.94]
[1748138017488,13.38535124,171.41,171.38,256.06]
[1748138018290,13.38535124,171.4,171.35,13.38535124]
[1748138018495,13.38535124,171.39,171.36,34.94]
[1748138022191,0.14216157,171.42,171.37,34.94]
[1748138022499,13.38535124,171.38,171.37,34.94]
[1748138022889,13.38535124,171.38,171.33,13.38535124]
[1748138023201,13.38535124,171.37,171.34,34.94]
[1748138023506,13.38535124,171.35,171.29,13.38535124]
[1748138023684,13.38535124,171.32,171.3,34.94]
[1748138024003,13.38535124,171.31,171.23,8.2514]
[1748138024210,13.38535124,171.29,171.25,13.38535124]
[1748138025380,13.38535124,171.29,171.26,34.94]
[1748138026497,13.38535124,171.3,171.26,34.94]
[1748138027593,13.38535124,171.3,171.27,256.1]
[1748138029906,13.38535124,171.31,171.27,38.08]
[1748138030126,13.38535124,171.32,171.27,51.46535124]
[1748138030293,13.38535124,171.32,171.28,34.94]
[1748138030616,150.64915124,171.33,171.28,48.32535124]
[1748138031184,149.08535124,171.33,171.28,48.32535124]
[1748138031929,13.38535124,171.32,171.28,34.94]
[1748138033318,13.38535124,171.31,171.28,34.94]
[1748138034217,13.38535124,171.32,171.28,34.94]
[1748138036034,149.08535124,171.33,171.28,48.32535124]
[1748138036330,26.0,171.36,171.28,48.32535124]
[1748138036331,39.38535124,171.35,171.29,13.38535124]
[1748138036630,13.38535124,171.34,171.29,13.38535124]
[1748138037021,13.38535124,171.33,171.28,48.32535124]
[1748138037541,13.38535124,171.33,171.29,256.16]
[1748138041540,26.0,171.35,171.29,269.54535124]
[1748138041727,39.38535124,171.35,171.3,13.38535124]
[1748138041923,27.6212,171.37,171.31,34.94]
[1748138042129,13.38535124,171.36,171.31,48.32535124]
[1748138042336,15.55453258,171.36,171.31,48.32535124]
[1748138043027,15.55453258,171.36,171.33,13.38535124]
[1748138043028,2.16918134,171.36,171.33,13.38535124]
[1748138043231,13.38535124,171.37,171.34,34.94]
[1748138043847,13.38535124,171.35,171.29,13.38535124]
[1748138044043,13.38535124,171.33,171.3,34.94]
[1748138044823,13.38535124,171.34,171.3,34.94]
[1748138045026,135.7,171.38,171.3,48.32535124]
[1748138045228,13.38535124,171.36,171.31,13.38535124]
[1748138046625,13.38535124,171.37,171.32,13.38535124]
[1748138047022,7.7981,171.41,171.34,13.38535124]
[1748138047251,13.38535124,171.39,171.35,48.32535124]
[1748138047549,13.38535124,171.38,171.36,256.12]
[1748138048149,13.38535124,171.39,171.36,256.12]
[1748138048649,13.38535124,171.38,171.36,256.12]
[1748138049348,33.7981,171.41,171.36,256.12]
[1748138049524,33.7981,171.41,171.36,38.08]
[1748138049726,13.38535124,171.39,171.36,38.08]
[1748138049941,13.38535124,171.39,171.35,34.94]
[1748138050143,13.38535124,171.37,171.35,34.94]
[1748138050358,33.7981,171.41,171.16,2.974043]
[1748138050359,0.14216157,171.35,171.25,1.5946]
[1748138050562,13.38535124,171.29,171.23,18.64964886]
[1748138050762,13.38535124,171.27,171.21,1.5946]
[1748138050959,13.38535124,171.27,171.22,48.32535124]
[1748138051939,13.38535124,171.25,171.19,18.64964886]
[1748138052135,13.38535124,171.26,171.21,13.38535124]
[1748138052448,13.38535124,171.26,171.22,34.94]
[1748138052644,13.38535124,171.25,171.22,34.94]
[1748138053059,13.38535124,171.24,171.23,34.94]
[1748138055860,13.38535124,171.24,171.19,13.38535124]
[1748138056066,13.38535124,171.24,171.23,34.96]
[1748138056480,13.38535124,171.24,171.14,6.2248]
[1748138056481,13.38535124,171.24,171.16,13.38535124]
[1748138056776,13.38535124,171.2,171.17,34.96]
[1748138056977,13.38535124,171.22,171.17,48.34535124]
[1748138057173,13.38535124,171.23,171.18,13.38535124]
[1748138057548,13.38535124,171.23,171.19,256.18]
[1748138058493,13.38535124,171.21,171.19,256.18]
[1748138058695,13.38535124,171.21,171.19,38.08]
[1748138060697,13.38535124,171.21,171.17,34.96]
[1748138061795,13.38535124,171.22,171.17,48.34535124]
[1748138062595,13.38535124,171.21,171.18,34.96]
[1748138062796,13.38535124,171.22,171.18,34.96]
[1748138063695,26.0,171.24,171.18,34.96]
[1748138063872,13.38535124,171.22,171.18,34.96]
[1748138064074,13.38535124,171.21,171.12,1.5891]
[1748138064376,13.38535124,171.21,171.16,13.38535124]
[1748138064575,13.38535124,171.21,171.13,34.96]
[1748138064576,13.38535124,171.2,171.15,13.38535124]
[1748138065306,13.38535124,171.19,171.13,34.96]
[1748138065508,13.38535124,171.19,171.14,13.38535124]
[1748138065709,13.38535124,171.18,171.15,34.96]
[1748138067107,13.38535124,171.19,171.15,34.96]
[1748138067407,13.38535124,171.19,171.14,13.38535124]
[1748138067408,13.38535124,171.19,171.16,34.96]
[1748138067609,13.38535124,171.19,171.17,38.1]
[1748138068410,13.38535124,171.18,171.17,38.1]
[1748138068709,13.38535124,171.18,171.17,73.06]
[1748138070310,13.38535124,171.19,171.17,73.06]
[1748138072213,13.38535124,171.19,171.17,34.96]
[1748138076811,135.84216157,171.23,171.17,34.96]
[1748138077010,13.38535124,171.19,171.17,34.96]
[1748138077321,135.7,171.22,171.18,13.38535124]
[1748138077528,135.7,171.22,171.19,269.68535124]
[1748138078533,135.7,171.22,171.19,256.3]
[1748138079306,135.7,171.22,171.2,34.98]
[1748138082149,13.38535124,171.21,171.07,4.62473535]
[1748138082340,13.38535124,171.17,171.1,18.64964886]
[1748138082649,13.38535124,171.17,171.12,13.38535124]
[1748138082943,13.38535124,171.17,171.13,13.38535124]
[1748138083144,13.38535124,171.17,171.14,34.98]
[1748138084046,13.38535124,171.18,171.14,34.98]
[1748138087647,13.38535124,171.18,171.15,256.3]
[1748138088022,13.38535124,171.17,171.15,256.3]
[1748138088219,13.38535124,171.17,171.16,34.98]
[1748138091239,0.14216157,171.21,171.16,34.98]
[1748138091451,13.38535124,171.18,171.16,34.98]
[1748138093628,135.7,171.2,171.16,34.98]
[1748138093834,13.38535124,171.22,171.17,13.38535124]
[1748138094355,13.38535124,171.2,171.16,34.98]
[1748138094953,1.5087,171.25,171.19,13.38535124]
[1748138095259,13.38535124,171.25,171.2,48.36535124]
[1748138095630,2.17575242,171.24,171.2,48.36535124]
[1748138096332,13.38535124,171.25,171.2,48.36535124]
[1748138096555,13.38535124,171.24,171.2,48.36535124]
[1748138097231,2.1776844,171.23,171.2,48.36535124]
[1748138097431,2.1776844,171.23,171.21,218.22]
[1748138097632,2.1776844,171.23,171.21,256.3]
[1748138098033,13.38535124,171.24,171.21,256.3]
[1748138098356,13.38535124,171.24,171.21,38.08]
[1748138098551,39.38535124,171.23,171.21,38.08]
[1748138099374,13.38535124,171.22,171.21,38.08]
[1748138099556,26.0,171.23,171.21,38.08]
[1748138099754,137.3275,171.29,171.22,13.38535124]
[1748138099950,137.3275,171.29,171.24,13.38535124]
[1748138099951,149.08535124,171.29,171.24,13.38535124]
[1748138100149,2.17766501,171.28,171.24,13.38535124]
[1748138100361,2.17766501,171.28,171.27,13.38535124]
[1748138100548,2.17766501,171.28,171.27,48.36535124]
[1748138100745,2.17766501,171.28,171.27,34.98]
[1748138101446,13.38535124,171.3,171.27,34.98]
[1748138102679,13.38535124,171.3,171.25,13.38535124]
[1748138102981,13.38535124,171.3,171.26,34.98]
[1748138103572,13.46740542,171.3,171.26,34.98]
[1748138106351,13.46740542,171.29,171.22,1.5739]
[1748138106557,13.46740542,171.29,171.23,34.96]
[1748138107168,13.46740542,171.28,171.23,34.96]
[1748138107578,13.46740542,171.28,171.24,256.2]
[1748138107960,13.46740542,171.29,171.24,256.2]
[1748138108167,13.46740542,171.3,171.24,256.2]
[1748138108385,13.46740542,171.3,171.24,38.06]
[1748138108778,13.46740542,171.3,171.23,34.96]
[1748138111680,13.46740542,171.31,171.23,34.96]
[1748138112066,41.00040542,171.33,171.24,18.64964886]
[1748138113080,13.46740542,171.32,171.24,18.64964886]
[1748138114393,13.41971486,171.38,171.28,18.64964886]
[1748138114565,13.46740542,171.36,171.29,34.96]
[1748138115061,13.46740542,171.35,171.29,34.96]
[1748138116886,27.5402,171.38,171.3,18.64964886]
[1748138117091,15.00760542,171.38,171.3,18.64964886]
[1748138117465,15.00760542,171.38,171.31,256.14]
[1748138118160,15.00760542,171.38,171.31,38.04]
[1748138119586,13.46740542,171.37,171.3,18.64964886]
[1748138119796,13.46740542,171.36,171.3,18.64964886]
[1748138120491,13.46740542,171.37,171.3,18.64964886]
[1748138121391,13.46740542,171.33,171.31,34.94]
[1748138121690,32.1177,171.36,171.32,34.94]
[1748138121881,13.46740542,171.33,171.24,18.64964886]
[1748138122189,13.46740542,171.32,171.24,18.64964886]
[1748138122488,13.46740542,171.32,171.25,34.94]
[1748138122985,13.46740542,171.3,171.25,34.94]
[1748138126792,13.46740542,171.31,171.25,34.94]
[1748138127289,13.46740542,171.32,171.25,34.94]
[1748138127463,13.46740542,171.32,171.26,256.1]
[1748138128691,13.46740542,171.31,171.26,256.1]
[1748138129078,13.46740542,171.32,171.26,256.1]
[1748138129281,13.46740542,171.32,171.25,34.94]
[1748138130295,45.58510542,171.36,171.25,34.94]
[1748138130296,32.1177,171.36,171.25,34.94]
[1748138130596,13.46740542,171.34,171.26,18.64964886]
[1748138130886,32.1177,171.36,171.26,18.64964886]
[1748138131092,13.46740542,171.35,171.26,18.64964886]
[1748138131668,32.1177,171.36,171.26,18.64964886]
[1748138132075,13.46740542,171.35,171.26,18.64964886]
[1748138133696,13.46740542,171.34,171.26,18.64964886]
[1748138136195,32.1177,171.36,171.23,110.0778]
[1748138136493,13.46740542,171.3,171.24,53.58964886]
[1748138136708,32.1177,171.36,171.24,18.64964886]
[1748138136874,13.46740542,171.35,171.26,18.64964886]
[1748138137602,13.46740542,171.34,171.28,18.64964886]
[1748138138792,39.46740542,171.36,171.28,18.64964886]
[1748138139699,39.46740542,171.36,171.26,18.64964886]
[1748138141198,13.46740542,171.35,171.26,18.64964886]
[1748138144499,13.46740542,171.34,171.26,18.64964886]
[1748138144805,13.46740542,171.35,171.26,18.64964886]
[1748138147485,13.46740542,171.33,171.27,256.06]
[1748138148103,13.46740542,171.33,171.28,34.94]
[1748138149200,13.46740542,171.33,171.29,34.94]
[1748138149407,13.46740542,171.32,171.24,18.64964886]
[1748138149705,13.46740542,171.32,171.26,18.64964886]
[1748138150703,26.0,171.36,171.27,34.94]
[1748138151000,13.46740542,171.33,171.27,34.94]
[1748138154801,26.0,171.36,171.27,34.94]
[1748138154992,13.46740542,171.35,171.27,34.94]
[1748138156398,135.7,171.37,171.28,18.64964886]
[1748138156603,13.46740542,171.36,171.28,18.64964886]
[1748138157006,13.46740542,171.35,171.28,18.64964886]
[1748138157610,13.46740542,171.35,171.29,256.06]
[1748138158211,13.46740542,171.33,171.23,84.0778]
[1748138158400,13.46740542,171.31,171.24,91.60964886]
[1748138160715,13.46740542,171.31,171.24,53.58964886]
[1748138161218,26.0,171.34,171.24,53.58964886]
[1748138161521,135.7,171.37,171.28,18.64964886]
[1748138161721,149.16740542,171.37,171.29,34.94]
[1748138161926,13.46740542,171.36,171.29,34.94]
[1748138162293,149.16740542,171.37,171.3,18.64964886]
[1748138164507,135.7,171.37,171.3,18.64964886]
[1748138165204,13.46740542,171.37,171.3,18.64964886]
[1748138165410,13.46740542,171.36,171.3,18.64964886]
[1748138167509,13.46740542,171.36,171.31,290.98]
[1748138167710,13.46740542,171.35,171.31,72.96]
[1748138168117,13.46740542,171.35,171.31,34.94]
[1748138168420,39.46740542,171.36,171.31,34.94]
[1748138168811,39.46740542,171.36,171.28,18.64964886]
[1748138169003,39.46740542,171.36,171.29,34.94]
[1748138170387,13.46740542,171.33,171.27,82.5]
[1748138170631,13.46740542,171.31,171.24,18.64964886]
[1748138170804,13.46740542,171.29,171.2,18.64964886]
[1748138171005,13.46740542,171.28,171.21,60.94]
[1748138171827,13.46740542,171.29,171.21,60.94]
[1748138173028,1.6375,171.31,171.21,60.94]
[1748138173214,13.31998292,171.29,171.21,60.94]
[1748138174247,13.31998292,171.29,171.23,18.64964886]
[1748138176236,13.46740542,171.3,171.23,18.64964886]
[1748138176549,13.46740542,171.29,171.23,18.64964886]
[1748138177447,13.46740542,171.3,171.23,18.64964886]
[1748138177751,13.46740542,171.3,171.24,256.08]
[1748138178656,13.46740542,171.26,171.25,38.02]
[1748138178846,13.46740542,171.26,171.25,72.96]
[1748138180550,13.46740542,171.26,171.2,18.64964886]
[1748138180745,13.46740542,171.26,171.21,34.94]
[1748138181221,1.6375,171.31,171.22,18.64964886]
[1748138181427,15.10490542,171.31,171.22,18.64964886]
[1748138183223,13.46740542,171.3,171.22,18.64964886]
[1748138187347,15.10490542,171.31,171.22,18.64964886]
[1748138187547,15.10490542,171.31,171.24,18.64964886]
[1748138188548,1.6375,171.31,171.24,18.64964886]
[1748138188845,15.10490542,171.31,171.22,18.64964886]
[1748138191772,13.46740542,171.29,171.22,18.64964886]
[1748138191942,13.46740542,171.24,171.23,34.96]
[1748138192327,13.46740542,171.24,171.16,26.0]
[1748138192646,13.46740542,171.22,171.17,34.96]
[1748138193542,13.46740542,171.21,171.17,34.96]
[1748138194854,13.46740542,171.22,171.17,34.96]
[1748138195164,13.46740542,171.23,171.17,34.96]
[1748138196153,6.2003,171.26,171.17,34.96]
[1748138196154,19.66770542,171.26,171.18,18.64964886]
[1748138197027,13.46740542,171.27,171.18,18.64964886]
[1748138197459,13.46740542,171.27,171.19,218.14]
[1748138197758,13.46740542,171.27,171.2,18.64964886]
[1748138198127,13.46740542,171.27,171.19,0.14216157]
[1748138199948,27.6238,171.28,171.19,0.14216157]
[1748138200251,13.46740542,171.27,171.19,0.14216157]
[1748138200661,15.09120542,171.28,171.19,0.14216157]
[1748138200856,1.6238,171.28,171.19,0.14216157]
[1748138202052,15.09120542,171.28,171.19,0.14216157]
[1748138202444,13.46740542,171.27,171.19,0.14216157]
[1748138203175,13.46740542,171.27,171.18,18.64964886]
[1748138203347,13.46740542,171.26,171.2,34.96]
[1748138204481,13.46740542,171.27,171.2,34.96]
[1748138207572,13.46740542,171.27,171.21,256.16]
[1748138207982,1.6238,171.28,171.21,256.16]
[1748138208163,13.46740542,171.27,171.21,256.16]
[1748138208363,13.46740542,171.27,171.2,34.96]
[1748138208770,13.46740542,171.26,171.2,34.96]
[1748138209275,13.46740542,171.25,171.2,34.96]
[1748138211077,13.46740542,171.25,171.18,18.64964886]
[1748138211275,13.46740542,171.25,171.19,34.96]
[1748138212285,13.46740542,171.23,171.17,26.0]
[1748138212488,13.46740542,171.23,171.18,34.96]
[1748138213677,13.46740542,171.22,171.18,34.96]
[1748138214289,13.46740542,171.22,171.16,18.64964886]
[1748138214492,13.46740542,171.22,171.17,34.96]
[1748138217619,13.46740542,171.22,171.18,256.16]
[1748138217814,13.46740542,171.22,171.18,38.02]
[1748138218116,13.46740542,171.23,171.19,34.96]
[1748138218312,13.46740542,171.22,171.19,34.96]
[1748138218507,13.46740542,171.22,171.15,18.64964886]
[1748138218709,39.46740542,171.27,171.16,34.96]
[1748138218911,13.46740542,171.25,171.17,18.64964886]
[1748138219130,39.46740542,171.27,171.17,18.64964886]
[1748138219429,13.46740542,171.26,171.17,18.64964886]
[1748138220812,26.0,171.27,171.17,18.64964886]
[1748138221124,13.46740542,171.26,171.17,18.64964886]
[1748138221420,1.6238,171.28,171.21,18.64964886]
[1748138221625,1.6238,171.28,171.22,34.96]
[1748138222130,15.09120542,171.28,171.22,34.96]
[1748138222914,13.46740542,171.29,171.22,34.96]
[1748138223828,13.46740542,171.31,171.23,18.64964886]
[1748138225645,13.46740542,171.3,171.23,18.64964886]
[1748138226152,13.46740542,171.29,171.23,18.64964886]
[1748138226332,13.46740542,171.28,171.21,1.5143]
[1748138226658,13.46740542,171.28,171.22,53.60964886]
[1748138227020,1.5606,171.32,171.22,53.60964886]
[1748138227223,13.46740542,171.28,171.22,53.60964886]
[1748138227538,13.46740542,171.28,171.23,256.14]
[1748138229841,13.46740542,171.29,171.23,256.14]
[1748138230048,13.46740542,171.29,171.23,38.02]
[1748138230233,13.46740542,171.29,171.22,53.60964886]
[1748138231054,1.5606,171.32,171.22,53.60964886]
[1748138231262,26.0,171.3,171.22,53.60964886]
[1748138231460,27.5606,171.32,171.22,136.10964886]
[1748138231627,6.1821,171.35,171.22,136.10964886]
[1748138231835,13.46740542,171.34,171.23,1.5751]
[1748138232141,13.46740542,171.35,171.23,1.5751]
[1748138232335,13.46740542,171.35,171.26,18.64964886]
[1748138232551,13.46740542,171.35,171.28,18.64964886]
[1748138232928,13.46740542,171.34,171.28,18.64964886]
[1748138237350,13.46740542,171.33,171.28,18.64964886]
[1748138237553,13.46740542,171.33,171.29,256.08]
[1748138238259,13.46740542,171.32,171.24,18.64964886]
[1748138238561,13.46740542,171.32,171.26,18.64964886]
[1748138238760,13.46740542,171.32,171.24,18.64964886]
[1748138238960,13.46740542,171.32,171.26,18.64964886]
[1748138239129,15.05730542,171.36,171.25,34.94]
[1748138239130,13.46740542,171.3,171.25,34.94]